fUSD/lending_fUSD_20240429
["ID","MTS","AMOUNT","RATE_DAILY","PERIOD"]
[324885059,1714396240125,-500.0,0.00011998,2]
[324885061,1714396240134,-233.29841089,0.00011998,2]
[324885063,1714396240146,-323.65158911,0.00011998,2]
[324885065,1714396240155,-500.0,0.00011998,2]
[324885067,1714396240165,-297.36150634,0.00011998,2]
[324885070,1714396240179,-202.63849366,0.00011998,2]
[324885072,1714396240188,-150.0,0.00011998,2]
[324885073,1714396240196,-500.0,0.00011998,2]
[324885076,1714396240206,-500.0,0.00011998,2]
[324885077,1714396240215,-500.0,0.00011998,2]
[324885080,1714396240225,-606.08635884,0.00011998,2]
[324885082,1714396240234,-500.0,0.00011998,2]
[324885084,1714396240243,-500.0,0.00011998,2]
[324885085,1714396240252,-500.0,0.00011998,2]
[324885086,1714396240262,-500.0,0.00011998,2]
[324885087,1714396240270,-500.0,0.00011998,2]
[324885088,1714396240279,-500.0,0.00011998,2]
[324885089,1714396240288,-500.0,0.00011998,2]
[324885090,1714396240297,-500.0,0.00011998,2]
[324885091,1714396240306,-500.0,0.00011998,2]
[324885092,1714396240315,-500.0,0.00011998,2]
[324885093,1714396240324,-500.0,0.00011998,2]
[324885094,1714396240333,-500.0,0.00011998,2]
[324885095,1714396240342,-500.0,0.00011998,2]
[324885097,1714396240352,-500.0,0.00011998,2]
[324885099,1714396240363,-500.0,0.00011998,2]
[324885102,1714396240372,-37.6391065,0.00011998,2]
[324885104,1714396240384,-408.66953304,0.00011998,2]
[324885106,1714396240394,-500.0,0.00011998,2]
[324885108,1714396240404,-500.0,0.00011998,2]
[324885110,1714396240413,-500.0,0.00011998,2]
[324885113,1714396240424,-393.6527645,0.00011998,2]
[324885116,1714396240448,-500.0,0.00011998,2]
[324885118,1714396240458,-500.0,0.00011998,2]
[324885120,1714396240468,-500.0,0.00011998,2]
[324885122,1714396240478,-500.0,0.00011998,2]
[324885124,1714396240487,-500.0,0.00011998,2]
[324885126,1714396240498,-24.58947283,0.00011998,2]
[324885129,1714396240521,-475.41052717,0.00011998,2]
[324885131,1714396240530,-233.30609013,0.00011998,2]
[324885156,1714396240753,-317.87,0.00011996,2]
[324885159,1714396240765,-182.13,0.00011996,2]
[324885161,1714396240775,-500.0,0.00011996,2]
[324885163,1714396240789,-61.69390987,0.00011998,2]
[324885165,1714396240798,-280.63150565,0.00011998,2]
[324885167,1714396240810,-219.36849435,0.00011998,2]
[324885169,1714396240821,-500.0,0.00011998,2]
[324885171,1714396240830,-414.1696959,0.00011998,2]
[324885173,1714396240840,-500.0,0.00011998,2]
[324885175,1714396240849,-949.83611591,0.00011998,2]
[324885177,1714396240859,-500.0,0.00011998,2]
[324885179,1714396240869,-500.0,0.00011998,2]
[324885181,1714396240879,-500.0,0.00011998,2]
[324885183,1714396240888,-500.0,0.00011998,2]
[324885185,1714396240897,-500.0,0.00011998,2]
[324885187,1714396240907,-500.0,0.00011998,2]
[324885189,1714396240916,-500.0,0.00011998,2]
[324885191,1714396240926,-500.0,0.00011998,2]
[324885193,1714396240935,-500.0,0.00011998,2]
[324885195,1714396240945,-500.0,0.00011998,2]
[324885197,1714396240955,-500.0,0.00011998,2]
[324885199,1714396240964,-500.0,0.00011998,2]
[324885201,1714396240973,-500.0,0.00011998,2]
[324885203,1714396240983,-328.68946697,0.00011998,2]
[324885213,1714396241064,-171.31053303,0.00011998,2]
[324885215,1714396241073,-500.0,0.00011998,2]
[324885217,1714396241082,-578.89596849,0.00011998,2]
[324885219,1714396241091,-270.25936863,0.00011998,2]
[324885221,1714396241101,-500.0,0.00011998,2]
[324885223,1714396241111,-500.0,0.00011998,2]
[324885225,1714396241120,-334.3870736,0.00011998,2]
[324885227,1714396241130,-500.0,0.00011998,2]
[324885229,1714396241140,-429.46705625,0.00011998,2]
[324885233,1714396241170,-110.49294375,0.00011998,2]
[324885235,1714396241180,-500.0,0.00011998,2]
[324885237,1714396241189,-500.0,0.00011998,2]
[324885240,1714396241199,-500.0,0.00011998,2]
[324885242,1714396241208,-500.0,0.00011998,2]
[324885244,1714396241218,-1734.79,0.00011998,2]
[324885246,1714396241227,-500.0,0.00011998,2]
[324885248,1714396241236,-500.0,0.00011998,2]
[324885250,1714396241244,-500.0,0.00011998,2]
[324885252,1714396241254,-500.0,0.00011998,2]
[324885254,1714396241263,-500.0,0.00011998,2]
[324885256,1714396241273,-500.0,0.00011998,2]
[324885258,1714396241282,-522.83428785,0.00011998,2]
[324885260,1714396241292,-500.0,0.00011998,2]
[324885262,1714396241301,-500.0,0.00011998,2]
[324885264,1714396241310,-500.0,0.00011998,2]
[324885266,1714396241320,-572.14,0.00011998,2]
[324885268,1714396241329,-500.0,0.00011998,2]
[324885270,1714396241338,-512.51,0.00011998,2]
[324885272,1714396241347,-500.0,0.00011998,2]
[324885274,1714396241357,-500.0,0.00011998,2]
[324885276,1714396241366,-500.0,0.00011998,2]
[324885278,1714396241375,-500.0,0.00011998,2]
[324885280,1714396241384,-500.0,0.00011998,2]
[324885282,1714396241393,-500.0,0.00011998,2]
[324885284,1714396241402,-500.0,0.00011998,2]
[324885286,1714396241412,-500.0,0.00011998,2]
[324885288,1714396241422,-500.0,0.00011998,2]
[324885290,1714396241431,-500.0,0.00011998,2]
[324885292,1714396241440,-500.0,0.00011998,2]
[324885294,1714396241450,-500.0,0.00011998,2]
[324885296,1714396241459,-500.0,0.00011998,2]
[324885298,1714396241468,-500.0,0.00011998,2]
[324885300,1714396241478,-500.0,0.00011998,2]
[324885302,1714396241487,-500.0,0.00011998,2]
[324885304,1714396241499,-500.0,0.00011998,2]
[324885306,1714396241508,-500.0,0.00011998,2]
[324885308,1714396241518,-500.0,0.00011998,2]
[324885310,1714396241527,-500.0,0.00011998,2]
[324885312,1714396241536,-500.0,0.00011998,2]
[324885314,1714396241545,-500.0,0.00011998,2]
[324885316,1714396241556,-500.0,0.00011998,2]
[324885318,1714396241565,-500.0,0.00011998,2]
[324885320,1714396241574,-500.0,0.00011998,2]
[324885322,1714396241583,-500.0,0.00011998,2]
[324885324,1714396241593,-660.25,0.00011998,2]
[324885326,1714396241604,-500.0,0.00011998,2]
[324885328,1714396241614,-500.0,0.00011998,2]
[324885330,1714396241623,-500.0,0.00011998,2]
[324885332,1714396241633,-500.0,0.00011998,2]
[324885334,1714396241643,-500.0,0.00011998,2]
[324885336,1714396241652,-500.0,0.00011998,2]
[324885338,1714396241662,-500.0,0.00011998,2]
[324885340,1714396241673,-506.53301786,0.00011998,2]
[324885342,1714396241682,-500.0,0.00011998,2]
[324885344,1714396241691,-500.0,0.00011998,2]
[324885346,1714396241701,-500.0,0.00011998,2]
[324885348,1714396241710,-500.0,0.00011998,2]
[324885350,1714396241720,-575.59,0.00011998,2]
[324885352,1714396241729,-500.0,0.00011998,2]
[324885354,1714396241738,-500.0,0.00011998,2]
[324885356,1714396241747,-500.0,0.00011998,2]
[324885359,1714396241756,-500.0,0.00011998,2]
[324885361,1714396241766,-500.0,0.00011998,2]
[324885363,1714396241775,-500.0,0.00011998,2]
[324885364,1714396241788,-500.0,0.00011998,2]
[324885366,1714396241797,-500.0,0.00011998,2]
[324885369,1714396241807,-500.0,0.00011998,2]
[324885371,1714396241816,-500.0,0.00011998,2]
[324885373,1714396241826,-769.23,0.00011998,2]
[324885375,1714396241836,-500.0,0.00011998,2]
[324885377,1714396241845,-500.0,0.00011998,2]
[324885379,1714396241855,-450.0,0.00011998,2]
[324885381,1714396241866,-500.0,0.00011998,2]
[324885383,1714396241876,-500.0,0.00011998,2]
[324885384,1714396241885,-4265.63,0.00011998,2]
[324885385,1714396241894,-185.03702777,0.00011999,2]
[324885386,1714396241903,-500.0,0.00011999,2]
[324885387,1714396241912,-500.0,0.00011999,2]
[324885388,1714396241922,-1217.64,0.00011999,2]
[324885389,1714396241931,-500.0,0.00011999,2]
[324885390,1714396241940,-500.0,0.00011999,2]
[324885391,1714396241949,-500.0,0.00011999,2]
[324885393,1714396241959,-217.4535101,0.00011999,2]
[324885394,1714396241968,-132037.71656888,0.00012,2]
[324885397,1714396241981,-280.62050714,0.00012,2]
[324885515,1714396242913,-5023.3255341,0.00012,2]
[324885561,1714396243285,-1016.1,0.00012,2]
[324885563,1714396243297,-41991.12804,0.00012,2]
[324885854,1714396245884,-500.0,0.00011899,2]
[324885856,1714396245894,-537.96,0.00011996,2]
[324885858,1714396245903,-4049.1227,0.00012,2]
[324885886,1714396246157,-288.51985909,8.855e-05,2]
[324885887,1714396246167,-2636.14829567,0.00012,2]
[324886005,1714397432053,-452.75892829,9.097e-05,2]
[324886007,1714397432065,-331.32080264,9.097e-05,2]
[324886010,1714397432077,-160.6944215,9.097e-05,2]
[324886012,1714397432085,-118.1055785,9.098e-05,2]
[324886014,1714397432106,-117.5344215,9.098e-05,2]
[324886015,1714397432115,-542.89,0.00010719,2]
[324886016,1714397432129,-137.70516604,0.0001077,2]
[324886017,1714397432144,-272.93483396,0.0001077,2]
[324886018,1714397432154,-156.77121029,0.00010852,2]
[324886019,1714397432164,-4654.69,0.00010908,2]
[324886020,1714397432175,-286.24,0.00010924,2]
[324886021,1714397432185,-150.0,0.00010959,2]
[324886022,1714397432195,-480.0,0.00010963,2]
[324886023,1714397432209,-167.62,0.00010973,2]
[324886024,1714397432219,-270.88,0.0001099,2]
[324886025,1714397432229,-811.97455148,0.00011,2]
[324886026,1714397432241,-7031.59422298,0.00011,2]
[324886027,1714397432264,-334.50747262,0.00011,2]
[324886028,1714397432275,-6899.99099065,0.00011,2]
[324886029,1714397432306,-979.60756,0.00011,2]
[324886030,1714397432318,-612.09798855,0.00011,2]
[324886031,1714397432380,-1099.33301702,0.00011,2]
[324886050,1714397438010,-815.0,0.00011,2]
[324886051,1714397438118,-6542.9,0.00011,2]
[324886052,1714397438327,-569.89984797,0.00011,2]
[324886233,1714397440052,-258.16788,0.00011,2]
[324886272,1714397440263,-455.52862352,0.00011,2]
[324886274,1714397440276,-3589.39784521,0.00011,2]
[324886276,1714397440286,-8478.5972909,0.00011,2]
[324886288,1714397440383,-21521.4027091,0.00011,2]
[324886290,1714397440393,-2450.0,0.00011,3]
[324886292,1714397440403,-792.1,0.00011,2]
[324886294,1714397440413,-150.0,0.00011023,2]
[324886296,1714397440423,-499.99,0.00011051,2]
[324886298,1714397440433,-176.03,0.00011123,2]
[324886300,1714397440443,-235.64,0.00011362,2]
[324886302,1714397440454,-321.04,0.000116,2]
[324886304,1714397440468,-911.1,0.000116,2]
[324886306,1714397440477,-111.9974786,0.000116,2]
[324886308,1714397440490,-799.1025214,0.000116,2]
[324886310,1714397440499,-911.1,0.000116,2]
[324886312,1714397440508,-373.0847067,0.000116,2]
[324886644,1714397443414,-293.33957425,0.000116,2]
[324886646,1714397443426,-244.67571905,0.000116,2]
[324886648,1714397443435,-336.33928095,0.000116,2]
[324886890,1714397557598,185.81575602,0.00025,120]
[324886911,1714398132840,293.36293216,0.00025,120]
[324886923,1714398324827,243.45,8.57e-05,2]
[324886927,1714398539602,255.74586642,8.57e-05,2]
[324886961,1714398632795,-150.0,0.00010344,2]
[324886963,1714398632805,-328.51,0.00010399,2]
[324886964,1714398632816,-150.0,0.00010443,2]
[324886965,1714398632825,-2810.0,0.00010443,2]
[324886966,1714398632835,-502.6,0.00010446,2]
[324886967,1714398632844,-161.11918863,0.00010457,2]
[324886968,1714398632854,-1083.62166137,0.00010536,2]
[324886969,1714398632867,-14713.10833863,0.00010536,2]
[324886970,1714398632880,-150.0,0.00010548,2]
[324886971,1714398632891,-8321.0652632,0.00010557,2]
[324886972,1714398632902,-5000.0,0.00010557,2]
[324886973,1714398632912,-5000.0,0.00010557,2]
[324886974,1714398632921,-153.67,0.00010572,2]
[324886975,1714398632931,-3369.78,0.00010572,2]
[324886976,1714398632941,-155.54,0.00010574,2]
[324886977,1714398632951,-416.16,0.00010689,2]
[324886978,1714398632960,-199.47,0.00010833,2]
[324886979,1714398632971,-243.45,0.00010834,2]
[324886980,1714398632981,-153.67,0.00010847,2]
[324886981,1714398632991,-199.47,0.0001086,2]
[324886982,1714398633000,-199.47,0.00010887,2]
[324886983,1714398633010,-150.0,0.00010959,2]
[324886984,1714398633020,-150.0,0.00010959,2]
[324886985,1714398633030,-910.83,0.00011,2]
[324886986,1714398633039,-2450.0,0.00011,3]
[324886987,1714398633049,-414.11,0.00011096,2]
[324886988,1714398633059,-414.11,0.00011096,2]
[324886989,1714398633068,-414.11,0.00011096,2]
[324886990,1714398633078,-153.67,0.00011122,2]
[324886991,1714398633088,-522.23,0.000112,2]
[324886992,1714398633097,-574.76,0.000112,2]
[324886993,1714398633107,-517.9,0.0001137,2]
[324886994,1714398633118,-150.0,0.0001137,2]
[324886995,1714398633131,-162.94,0.0001137,2]
[324886996,1714398633143,-2445.17272256,0.00011398,2]
[324886997,1714398633153,-210.0,0.00011487,2]
[324886998,1714398633164,-158.3814673,0.0001157,2]
[324886999,1714398633174,-411.98395116,0.00011579,2]
[324887000,1714398633184,-8471.53454755,0.00011579,2]
[324887001,1714398633194,-59224.83370959,0.0001158,2]
[324887023,1714398633419,-3103.1,0.0001158,2]
[324887029,1714398633469,-1859.253,0.0001158,2]
[324887031,1714398633482,-373.1648316,0.0001158,2]
[324887033,1714398633497,-670.40446984,0.0001158,2]
[324887035,1714398633508,-34227.98323993,0.0001158,2]
[324887038,1714398633518,-621.79117,0.0001158,2]
[324887040,1714398633534,-18671.38459923,0.0001158,2]
[324887075,1714398638277,-670.6072525,0.0001158,2]
[324887076,1714398638303,-498.55827688,0.0001158,2]
[324887077,1714398638314,-31018.59999999,0.0001158,2]
[324887078,1714398638359,-263.8,0.0001158,2]
[324887079,1714398638470,-3128.10000001,0.0001158,2]
[324887276,1714398640535,-155.6878,0.00010344,2]
[324887278,1714398640545,-4606.1238598,0.0001158,2]
[324887280,1714398640556,-310.31,0.0001158,2]
[324887282,1714398640570,-4035.73968024,0.0001158,2]
[324887284,1714398640582,-434.60787202,0.0001158,2]
[324887346,1714398643369,-930.93,0.0001158,2]
[324887347,1714398643650,-1241.24,0.0001158,2]
[324887348,1714398643662,-6206.2,0.0001158,2]
[324887349,1714398643674,-31047.1639,0.0001158,2]
[324887350,1714398643686,-619.92931,0.0001158,2]
[324887351,1714398643702,-577.725,0.0001158,2]
[324887352,1714398643714,-6328.0,0.0001158,2]
[324887353,1714398643757,-279707.67097311,0.0001158,2]
[324887354,1714398643820,-486.87453208,0.0001158,2]
[324887360,1714398646208,-789.5512625,0.0001158,2]
[324887361,1714398646263,-15312.27722887,0.0001158,2]
[324887362,1714398646374,-2884.28933481,0.0001158,2]
[324887363,1714398646390,-12453.5949,0.0001158,2]
[324887364,1714398646443,-16020.05351915,0.0001158,2]
[324887365,1714398646491,-1342.36935283,0.0001158,2]
[324887366,1714398646546,-124024.80000008,0.0001158,2]
[324887371,1714398720828,-3075.4,0.00010908,2]
[324887372,1714398866592,279.22,8.407e-05,2]
[324887373,1714398993443,150.0,7.801e-05,2]
[324887374,1714399004876,150.0,8.245e-05,2]
[324887375,1714399035908,65.21814013,8.833e-05,2]
[324887376,1714399035932,84.78185987,8.833e-05,2]
[324887377,1714399040437,288.34603203,7.801e-05,2]
[324887378,1714399045027,169.68988242,7.801e-05,2]
[324887379,1714399061072,-265.65724392,9.067e-05,2]
[324887380,1714399061096,-236.89551413,9.067e-05,2]
[324887381,1714399061120,-155.0,9.068e-05,2]
[324887382,1714399061143,-444.96932684,9.068e-05,2]
[324887383,1714399061167,-487.63911837,9.068e-05,2]
[324887384,1714399061189,-155.0,9.069e-05,2]
[324887385,1714399061212,-684.59558669,9.069e-05,2]
[324887386,1714399061237,-155.0,9.069e-05,2]
[324887387,1714399061261,-2181.02038559,9.069e-05,2]
[324887388,1714399061284,-1061.41192642,9.07e-05,2]
[324887389,1714399061308,-210.73998975,9.07e-05,2]
[324887390,1714399061331,-155.0,9.07e-05,2]
[324887391,1714399061355,-206.9059872,9.071e-05,2]
[324887392,1714399061380,-150.0,9.072e-05,2]
[324887393,1714399061405,-150.0,9.117e-05,2]
[324887394,1714399061429,-150.0,9.455e-05,2]
[324887395,1714399061452,-664.85,9.854e-05,2]
[324887396,1714399061477,-427.459705,9.939e-05,2]
[324887397,1714399061502,-4334.88964973,9.977e-05,2]
[324887398,1714399061526,-698.88,9.978e-05,2]
[324887399,1714399061751,-3415.39363625,9.989e-05,2]
[324887400,1714399061777,-150.0,9.989e-05,2]
[324887401,1714399061804,-150.0,9.989e-05,2]
[324887402,1714399061828,-155.0,9.99e-05,2]
[324887403,1714399061852,-5549.67368343,9.99e-05,2]
[324887404,1714399065414,155.0,9.066e-05,2]
[324887405,1714399079895,-150.0,0.0001003,2]
[324887406,1714399079921,-163.98,0.00010048,2]
[324887407,1714399079946,-1618.32,0.0001014,2]
[324887408,1714399079971,-151.04,0.00010485,2]
[324887409,1714399079998,-151.04,0.00010498,2]
[324887410,1714399080024,-151.04,0.00010511,2]
[324887411,1714399080051,-151.04,0.00010525,2]
[324887412,1714399080076,-200.0,0.0001053,2]
[324887413,1714399080103,-151.04,0.00010538,2]
[324887414,1714399080128,-250.0,0.00010571,2]
[324887415,1714399080156,-150.0,0.00010661,2]
[324887416,1714399080182,-279.22,0.00010671,2]
[324887417,1714399080208,-177.47,0.00010877,2]
[324887418,1714399080234,-15356.7647489,0.00010905,2]
[324887419,1714399080260,-298.84757904,0.00010908,2]
[324887420,1714399080286,-306.80818628,0.00010908,2]
[324887421,1714399080312,-546.22445098,0.00010908,2]
[324887422,1714399080338,-1992.62,0.00010908,2]
[324887423,1714399080362,-150.0,0.00010959,2]
[324887424,1714399080387,-910.80136053,0.00010986,2]
[324887425,1714399080412,-205.89797358,0.00010987,2]
[324887426,1714399080438,-155.27233188,0.00010995,2]
[324887427,1714399080462,-236.11943642,0.00010995,2]
[324887428,1714399080488,-885.87026488,0.00010995,2]
[324887429,1714399080514,-353.0808742,0.00010995,2]
[324887430,1714399080539,-272.31852524,0.00010995,2]
[324887431,1714399080563,-228.73024803,0.00010995,2]
[324887432,1714399080588,-157.37855231,0.00010996,2]
[324887433,1714399080614,-35277.410989,0.00010997,2]
[324887436,1714399339658,290.22,8.66e-05,2]
[324887437,1714399427011,422.87261508,7.794e-05,2]
[324887438,1714399444925,422.87261508,7.794e-05,2]
[324887439,1714399460935,422.87261508,7.015e-05,2]
[324887440,1714399480926,422.87261508,7.015e-05,2]
[324887441,1714399514940,422.9541034,7.015e-05,2]
[324887442,1714399536951,423.4346937,6.314e-05,2]
[324887450,1714399831507,-538.88,9.558e-05,2]
[324887451,1714399831521,-1642.14038559,9.558e-05,2]
[324887452,1714399831532,-1827.92,9.559e-05,2]
[324887453,1714399831543,-150.0,9.56e-05,2]
[324887454,1714399831553,-150.0,9.71e-05,2]
[324887455,1714399831565,-3001.33961441,9.761e-05,2]
[324887456,1714399831578,-8781.87824367,9.761e-05,2]
[324887457,1714399831591,-888.50890406,9.761e-05,2]
[324887458,1714399831603,-3359.54880777,9.761e-05,2]
[324887459,1714399831617,-420.01585124,9.761e-05,2]
[324887460,1714399831632,-150.0,9.762e-05,2]
[324887461,1714399831643,-150.0,9.771e-05,2]
[324887462,1714399831654,-150.0,9.926e-05,2]
[324887463,1714399831664,-150.0,9.992e-05,2]
[324887464,1714399831675,-150.0,0.00010021,2]
[324887465,1714399831685,-39.42009992,0.00010026,2]
[324887466,1714399831700,-110.57990008,0.00010026,2]
[324887467,1714399831711,-150.0,0.00010046,2]
[324887468,1714399831727,-150.0,0.000101,2]
[324887469,1714399831738,-150.0,0.00010122,2]
[324887470,1714399831749,-150.0,0.00010146,2]
[324887471,1714399831762,-150.0,0.00010146,2]
[324887472,1714399831772,-177.47,0.00010303,2]
[324887473,1714399831784,-150.0,0.00010382,2]
[324887474,1714399831794,-150.0,0.00010407,2]
[324887475,1714399831805,-262.8,0.00010422,2]
[324887476,1714399831818,-200.0,0.00010438,2]
[324887477,1714399831828,-177.47,0.00010482,2]
[324887478,1714399831839,-1078.54,0.00010515,2]
[324887479,1714399831851,-150.0,0.00010556,2]
[324887481,1714399831864,-150.0,0.00010581,2]
[324887482,1714399831879,-177.47,0.00010661,2]
[324887483,1714399831890,-120.90049401,0.00010682,2]
[324887484,1714399831906,-29.09950599,0.00010682,2]
[324887485,1714399831920,-197.86,0.00010703,2]
[324887487,1714399831931,-150.0,0.00010779,2]
[324887489,1714399831943,-150.0,0.00010794,2]
[324887492,1714399831955,-177.47,0.0001084,2]
[324887494,1714399831965,-150.0,0.00010918,2]
[324887496,1714399831976,-150.0,0.00010922,2]
[324887498,1714399831987,-290.22,0.00010923,2]
[324887500,1714399831998,-499.99,0.00010923,2]
[324887502,1714399832010,-6908.19,0.00010923,2]
[324887504,1714399832021,-268.33424577,0.00010957,2]
[324887507,1714399832033,-155.0,0.00010957,2]
[324887509,1714399832043,-150.0,0.00010959,2]
[324887511,1714399832055,-22707.83,0.00010959,2]
[324887513,1714399832066,-298.84757904,0.00010997,2]
[324887515,1714399832077,-2450.0,0.00011,3]
[324887517,1714399832088,-953.70124616,0.00011,2]
[324887518,1714399832099,-150.0,0.00011093,2]
[324887519,1714399832109,-645.20802505,0.00011115,2]
[324887520,1714399832121,-177.94,0.00011125,2]
[324887521,1714399832132,-158.03909789,0.00011138,2]
[324887522,1714399832143,-150.0,0.00011142,2]
[324887523,1714399832154,-166.57185447,0.00011173,2]
[324887524,1714399832164,-2577.48697742,0.00011175,2]
[324887525,1714399832175,-152.12902794,0.0001118,2]
[324887526,1714399832186,-150.0,0.00011204,2]
[324887528,1714399832196,-698.88,0.00011225,2]
[324887530,1714399832207,-499.99,0.00011225,2]
[324887533,1714399832218,-348.86564417,0.00011228,2]
[324887535,1714399832228,-150.0,0.00011238,2]
[324887537,1714399832238,-150.0,0.00011239,2]
[324887539,1714399832249,-154.87226491,0.00011246,2]
[324887541,1714399832259,-157.82207309,0.00011281,2]
[324887543,1714399832270,-150.0,0.00011308,2]
[324887545,1714399832281,-194.12053341,0.00011313,2]
[324887547,1714399832292,-255.39301211,0.00011324,2]
[324887548,1714399832303,-155.44676864,0.00011358,2]
[324887549,1714399832314,-158.03909789,0.00011365,2]
[324887550,1714399832326,-1044.26,0.0001137,2]
[324887551,1714399832337,-300.44,0.0001137,2]
[324887552,1714399832347,-301.48,0.0001137,2]
[324887553,1714399832360,-418.94,0.0001137,2]
[324887554,1714399832375,-150.0,0.0001137,2]
[324887555,1714399832386,-150.0,0.0001137,2]
[324887556,1714399832397,-162.94,0.0001137,2]
[324887557,1714399832408,-150.0,0.0001137,2]
[324887558,1714399832420,-150.0,0.0001137,2]
[324887559,1714399832433,-150.0,0.0001137,2]
[324887560,1714399832444,-162.94,0.0001137,2]
[324887561,1714399832456,-150.0,0.0001137,2]
[324887562,1714399832467,-162.94,0.0001137,2]
[324887563,1714399832476,-162.94,0.0001137,2]
[324887564,1714399832489,-1294.66870837,0.00011398,2]
[324887565,1714399832499,-2577.48697742,0.00011421,2]
[324887566,1714399832510,-150.0,0.00011458,2]
[324887567,1714399832521,-265.31471707,0.00011465,2]
[324887568,1714399832531,-210.0999,0.00011479,2]
[324887569,1714399832542,-960.9991,0.00011479,2]
[324887570,1714399832552,-3660.9498,0.0001148,2]
[324887571,1714399832563,-583.7483,0.0001148,2]
[324887572,1714399832574,-8249.8171,0.0001148,2]
[324887573,1714399832585,-4443.8729,0.0001148,2]
[324887574,1714399832596,-1279.3347,0.0001148,2]
[324887575,1714399832607,-620.04,0.0001148,2]
[324887576,1714399832620,-370.0328,0.0001148,2]
[324887577,1714399832632,-159.91203694,0.00011482,2]
[324887578,1714399832644,-645.20802505,0.00011489,2]
[324887579,1714399832655,-3000.0,0.0001151,2]
[324887580,1714399832668,-1500.0,0.00011521,2]
[324887581,1714399832680,-2500.0,0.0001157,2]
[324887582,1714399832691,-4289.66138288,0.00011579,2]
[324887583,1714399832701,-216.13758338,0.00011579,2]
[324887584,1714399832713,-101948.52581263,0.0001158,2]
[324887585,1714399832725,-1522.5886051,0.0001158,2]
[324887586,1714399832736,-3000.0,0.0001158,2]
[324887587,1714399832749,-3000.0,0.0001158,2]
[324887588,1714399832760,-3000.0,0.0001159,2]
[324887589,1714399832771,-3000.0,0.0001166,2]
[324887590,1714399833020,-10000.0,0.0001168,2]
[324887591,1714399833048,-500.0,0.00011681,2]
[324887592,1714399833060,-220.73595913,0.00011681,2]
[324887593,1714399833070,-150.0,0.00011696,2]
[324887594,1714399833079,-265.31471707,0.00011704,2]
[324887595,1714399833090,-262.8,0.00011725,2]
[324887596,1714399833100,-3000.0,0.0001174,2]
[324887597,1714399833109,-150.0,0.00011744,2]
[324887598,1714399833120,-194.12053341,0.00011747,2]
[324887599,1714399833130,-157.46268323,0.00011758,2]
[324887600,1714399833140,-266.49441154,0.00011771,2]
[324887601,1714399833149,-548.33960924,0.00011773,2]
[324887602,1714399833158,-500.0,0.00011777,2]
[324887603,1714399833168,-500.0,0.00011777,2]
[324887604,1714399833177,-500.0,0.00011778,2]
[324887605,1714399833186,-500.0,0.00011778,2]
[324887606,1714399833196,-956.8,0.00011778,2]
[324887607,1714399833205,-500.0,0.00011778,2]
[324887608,1714399833214,-500.0,0.00011778,2]
[324887609,1714399833223,-500.0,0.00011778,2]
[324887610,1714399833233,-500.0,0.00011778,2]
[324887611,1714399833243,-1812.81,0.00011778,2]
[324887612,1714399833252,-500.0,0.00011778,2]
[324887613,1714399833261,-500.0,0.00011778,2]
[324887614,1714399833270,-500.0,0.00011778,2]
[324887615,1714399833279,-500.0,0.00011778,2]
[324887616,1714399833288,-500.0,0.00011778,2]
[324887617,1714399833297,-803.75,0.00011778,2]
[324887618,1714399833307,-500.0,0.00011778,2]
[324887619,1714399833315,-500.0,0.00011778,2]